fUST/lending_fUST_20251118
["ID","MTS","AMOUNT","RATE_DAILY","PERIOD"]
[394290890,1763421032867,-199.0,0.00048219,30]
[394290892,1763421032876,-2822.72274728,0.00048487,90]
[394290894,1763421032888,-20541.60446282,0.00048487,90]
[394290896,1763421032897,-1500.0,0.00048558,10]
[394290898,1763421032906,-1978.68,0.000487,49]
[394290900,1763421032915,-157.76859704,0.0004879,2]
[394290902,1763421032924,-500.0,0.00048868,120]
[394290904,1763421032933,-33435.654154,0.00048869,4]
[394290906,1763421032942,-500.0,0.00048878,120]
[394290908,1763421032951,-500.0,0.00048878,120]
[394290910,1763421032960,-438.37,0.00048878,120]
[394290912,1763421032970,-500.0,0.00048878,7]
[394290914,1763421032979,-618.01920266,0.00048878,7]
[394290916,1763421032988,-20447.74367045,0.00048879,4]
[394290919,1763421033003,-255.49749186,0.00048879,4]
[394290921,1763421033015,-744.50250814,0.00048879,4]
[394290923,1763421033026,-975.72973871,0.00048879,4]
[394291268,1763421038402,-1065.128561,0.00048879,10]
[394291281,1763421038513,-2552.211439,0.00048879,10]
[394291283,1763421038523,-13555.50715727,0.00048879,4]
[394291445,1763421040388,-18281.47677663,0.00048879,4]
[394292245,1763421048079,-142.33410256,0.00043352,2]
[394292258,1763421048195,-223.51889744,0.00043352,2]
[394292260,1763421048208,-1205.3307582,0.00048879,10]
[394293899,1763421122900,15196.0,0.00022,2]
[394293903,1763421950144,-360.69332133,0.00024211,2]
[394293910,1763422032098,-1881.89380143,0.00024211,2]
[394293911,1763422047096,-2375.45627729,0.00024211,2]
[394293912,1763422047119,-193.85341116,0.000378,2]
[394293913,1763422047142,-181.47390391,0.00037915,19]
[394293914,1763422047165,-1490.8280666,0.00040848,7]
[394293915,1763422047186,-1002.25877995,0.000409,60]
[394293916,1763422047208,-1000.0,0.00041002,30]
[394293917,1763422047230,-460.3059596,0.00041253,28]
[394293918,1763422047251,-202.966829,0.0004129,60]
[394293919,1763422047272,-676.1073449,0.00041377,33]
[394293920,1763422047296,-2850.33000042,0.00042912,2]
[394293921,1763422047317,-718.86615446,0.00045511,2]
[394293922,1763422047340,-1293.95907802,0.00045511,2]
[394293923,1763422047360,-300.0,0.00046904,60]
[394293924,1763422047381,-212.1275694,0.00046978,2]
[394293926,1763422049112,-441.46416593,0.00046978,2]
[394293956,1763422099574,-1000.0,0.00048,120]
[394293957,1763422099614,-300.0,0.0004811,90]
[394293958,1763422099661,-196.32159881,0.000487,120]
[394293959,1763422099709,-323.03009228,0.00048888,120]
[394293960,1763422099761,-500.0,0.00048888,120]
[394293961,1763422099806,-500.0,0.00048888,120]
[394293962,1763422099852,-500.0,0.00048888,120]
[394293963,1763422099896,-240.895,0.00048888,85]
[394293964,1763422099943,-199.0,0.00048899,30]
[394293965,1763422099988,-81150.852527,0.000489,120]
[394293966,1763422100034,-483.91,0.00049,30]
[394293967,1763422100075,-500.0,0.00049135,30]
[394293968,1763422100117,-500.0,0.00049205,70]
[394293969,1763422100166,-600.0,0.00049969,120]
[394293970,1763422100210,-223.0253843,0.0005,120]
[394293971,1763422100254,-178.29643427,0.0005,120]
[394293972,1763422100298,-15196.0,0.000501,120]
[394293973,1763422100338,-3081.739116,0.000502,120]
[394293974,1763422100384,-199.0,0.00050269,30]
[394293975,1763422100426,-500.0,0.00050849,90]
[394293976,1763422100469,-150.0,0.00051,85]
[394293977,1763422100514,-3000.0,0.000512,120]
[394293978,1763422100560,-199.0,0.00051639,30]
[394293979,1763422100718,-500.0,0.00051721,30]
[394293980,1763422100761,-158.0,0.000518,120]
[394293981,1763422100803,-500.0,0.00052055,120]
[394293982,1763422100843,-624.0,0.00052055,120]
[394293983,1763422100883,-198.0,0.00052055,120]
[394293984,1763422100924,-3000.0,0.000522,120]
[394293985,1763422100968,-500.0,0.00052876,60]
[394293986,1763422101009,-1409.0,0.00053,120]
[394293987,1763422101050,-158.7977036,0.00053,120]
[394293988,1763422101095,-199.0,0.00053009,30]
[394293989,1763422101138,-2999.999999,0.000532,120]
[394293990,1763422101188,-500.0,0.00053424,60]
[394293991,1763422101230,-101396.0708,0.0005344,30]
[394293992,1763422101271,-166.66,0.00053473,120]
[394293993,1763422101313,-349.16,0.0005352,120]
[394293994,1763422101351,-504.74669647,0.0005352,30]
[394293995,1763422101391,-362.30590409,0.0005352,30]
[394293996,1763422101429,-505.14503263,0.0005352,30]
[394293997,1763422101465,-500.0,0.00053589,120]
[394293998,1763422101503,-166.66,0.00053747,120]
[394293999,1763422101542,-20157.24078819,0.000539,60]
[394294000,1763422101582,-500.0,0.00053972,60]
[394294001,1763422101620,-1000.0,0.00054,120]
[394294002,1763422101659,-1000.0,0.00054,120]
[394294003,1763422101699,-166.68,0.00054021,120]
[394294004,1763422101738,-3000.0,0.000542,120]
[394294005,1763422101779,-199.0,0.00054379,30]
[394294006,1763422101816,-500.0,0.00054443,30]
[394294007,1763422101853,-1000.0,0.00054443,120]
[394294008,1763422101893,-2000.0,0.000545,60]
[394294009,1763422101933,-500.0,0.0005452,60]
[394294010,1763422101977,-500.0,0.00054794,120]
[394294011,1763422102019,-502.32,0.00054794,120]
[394294012,1763422102059,-500.0,0.00054794,120]
[394294013,1763422102100,-179.6025,0.00054794,120]
[394294014,1763422102139,-500.0,0.00054794,120]
[394294015,1763422102178,-605.44246837,0.00054794,120]
[394294016,1763422102219,-500.0,0.00054794,120]
[394294017,1763422102260,-500.0,0.00054795,120]
[394294018,1763422102301,-153.0,0.00054795,120]
[394294019,1763422102341,-153.0,0.00054795,120]
[394294020,1763422102383,-153.0,0.00054795,120]
[394294021,1763422102424,-153.0,0.00054795,120]
[394294022,1763422102470,-153.0,0.00054795,120]
[394294023,1763422102514,-153.0,0.00054795,120]
[394294024,1763422102558,-153.0,0.00054795,120]
[394294025,1763422102597,-153.0,0.00054795,120]
[394294026,1763422102639,-153.0,0.00054795,120]
[394294027,1763422102679,-153.0,0.00054795,120]
[394294028,1763422102718,-153.0,0.00054795,120]
[394294029,1763422102758,-153.0,0.00054795,120]
[394294030,1763422102797,-153.0,0.00054795,120]
[394294031,1763422102834,-153.0,0.00054795,120]
[394294032,1763422102874,-153.0,0.00054795,120]
[394294033,1763422102913,-153.0,0.00054795,120]
[394294034,1763422102954,-153.0,0.00054795,120]
[394294035,1763422102996,-153.0,0.00054795,120]
[394294045,1763422106528,2000.0,0.0005479,30]
[394294048,1763422108622,76809.06065196,0.000489,120]
[394294049,1763422109381,166.73030846,0.00025,120]
[394294050,1763422111465,193.81111598,0.00032,120]
[394294053,1763422116814,169.09808511,0.000295,120]
[394294054,1763422117877,157.679998,0.0003,120]
[394294064,1763422122942,17418.63011279,0.00038155,30]
[394294095,1763422157116,-1652.064219,0.00026,30]
[394294096,1763422157136,-5000.0,0.0003357,4]
[394294097,1763422157158,-178.3178409,0.000339,120]
[394294098,1763422157178,-472.87220633,0.00034,2]
[394294099,1763422168084,-539.23947957,0.00034,2]
[394294117,1763422174094,-12397.28061117,0.00035,2]
[394294118,1763422174114,-6111.5943478,0.00035505,2]
[394294119,1763422174136,-265.91147868,0.0003624,2]
[394294120,1763422174156,-1023.01974593,0.0003686,2]
[394294130,1763422189657,400.0,0.00034,120]
[394294149,1763422203938,300.0,0.00036,120]
[394294150,1763422205063,7174.25116127,0.00025,2]
[394294151,1763422205083,8021.74883873,0.00025,2]
[394294167,1763422232280,-182.0,0.00035,120]
[394294168,1763422232290,-4028.81863829,0.00038,30]
[394294170,1763422232300,-300.0,0.00038,120]
[394294171,1763422232309,-16050.51,0.00038055,2]
[394294172,1763422232318,-2426.33374189,0.00038155,20]
[394294173,1763422232327,-10588.86361973,0.000398,30]
[394294174,1763422232336,-4019.32229321,0.000399,2]
[394294175,1763422232345,-883.86229398,0.0004,2]
[394294176,1763422232354,-200.0,0.0004,120]
[394294177,1763422232363,-1646.77995893,0.00046978,2]
[394294178,1763422232372,-150.0,0.00047899,2]
[394294179,1763422232381,-600.0,0.00048002,90]
[394294180,1763422232390,-1696.02,0.000487,49]
[394294181,1763422232399,-2365.95,0.0004878,10]
[394294182,1763422232408,-560.44653299,0.0004878,10]
[394294183,1763422232419,-1106.10724303,0.0004878,10]
[394294217,1763422240535,-300.0,0.00036,120]
[394294219,1763422240547,-500.0,0.00039799,31]
[394294220,1763422240559,-500.0,0.00039799,31]
[394294224,1763422240574,-500.0,0.00039799,15]
[394294227,1763422240585,-500.0,0.00039799,7]
[394294228,1763422240597,-323.03009228,0.00039799,31]
[394294229,1763422240608,-500.0,0.00039799,31]
[394294230,1763422240621,-500.0,0.00039799,7]
[394294231,1763422240631,-500.0,0.00039799,7]
[394294233,1763422240641,-500.0,0.00039799,7]
[394294234,1763422240652,-500.0,0.00039799,7]
[394294236,1763422240662,-168.69095476,0.00039799,7]
[394294237,1763422240672,-4019.32229316,0.00046249,28]
[394294238,1763422240684,-2384.80622398,0.0004878,10]
[394294239,1763422240694,-3376.14,0.0004878,10]
[394294240,1763422240706,-282.61344186,0.00048789,7]
[394294241,1763422240717,-500.0,0.00048789,7]
[394294242,1763422240730,-322372.71998016,0.0004879,2]
[394294243,1763422240741,-157.76859702,0.0004889,2]
[394294244,1763422240752,-444.50614288,0.000489,2]
[394294245,1763422240763,-500.0,0.00048973,10]
[394294246,1763422240775,-474.49252842,0.00048973,7]
[394294247,1763422240787,-500.0,0.00048973,10]
[394294248,1763422240798,-500.0,0.00048973,10]
[394294249,1763422240810,-166.42268822,0.00048973,10]
[394294250,1763422240822,-505.1461733,0.00048973,10]
[394294251,1763422240834,-500.0,0.00048973,10]
[394294252,1763422240845,-502.07956742,0.00048973,10]
[394294253,1763422240856,-500.0,0.00048973,10]
[394294254,1763422240866,-500.96930845,0.00048973,10]
[394294255,1763422240875,-164.64341477,0.00048973,10]
[394294256,1763422240885,-500.0,0.00048973,10]
[394294257,1763422240894,-155.77756144,0.00048973,10]
[394294258,1763422240904,-500.0,0.00048973,10]
[394294259,1763422240913,-500.0,0.00048973,10]
[394294260,1763422240924,-166.53386057,0.0004899,4]
[394294261,1763422240938,-665.46930685,0.0004899,4]
[394294262,1763422240951,-205.51186267,0.0004899,4]
[394294263,1763422240962,-265.79925039,0.0004899,4]
[394294264,1763422240976,-1063.19700155,0.0004899,4]
[394294265,1763422240987,-2392.19325349,0.0004899,4]
[394294266,1763422240997,-2086.97848149,0.0004899,4]
[394294267,1763422241007,-366.12524074,0.0004899,4]
[394294268,1763422241017,-106909.76565718,0.00049,2]
[394294297,1763422243764,-24500.41281971,0.00049,2]
[394294326,1763422246593,-955.99,0.00048684,2]
[394294327,1763422263798,5000.0,0.00024953,2]
[394294328,1763422279004,975.02771167,0.00024953,2]
[394294332,1763422297592,187.57345069,0.00031765,30]
[394294339,1763422322736,10355.96223334,0.00025,2]
[394294340,1763422322756,4840.03776666,0.00025,2]
[394294343,1763422546171,249.656998,0.00013699,2]
[394294344,1763422546291,249.656998,0.00020187,2]
[394294345,1763422547007,-897.15275419,0.00023463,2]
[394294347,1763422557630,-166.0,0.00023228,2]
[394294348,1763422594547,1104.23,0.00038178,120]
[394294367,1763422810129,12433.0,0.000217,2]
[394294372,1763422944056,390.66194298,0.00022,2]
[394294391,1763423113028,150000.0,0.00038179,30]
[394294393,1763423120765,5000.0,0.00022,2]
[394294394,1763423128969,422.14349784,0.00022,2]
[394294395,1763423156126,-339.36737569,0.00022473,2]
[394294399,1763423218083,-1994.78418015,0.00022473,2]
[394294401,1763423234081,-1934.69568997,0.00022473,2]
[394294402,1763423234101,-1134.0,0.000227,2]
[394294403,1763423234122,-235.27876376,0.00023,2]
[394294404,1763423234148,-1200.0,0.00024762,2]
[394294405,1763423234170,-300.0,0.00024948,2]
[394294406,1763423234191,-158.77487831,0.00024949,2]
[394294407,1763423237107,-141.22512169,0.00024949,2]
[394294408,1763423237129,-300.0,0.00024949,2]
[394294409,1763423237150,-1098.0,0.0002495,2]
[394294410,1763423237172,-249.656998,0.00026676,2]
[394294411,1763423237192,-300.0,0.00026848,2]
[394294412,1763423237212,-1200.0,0.00026954,2]
[394294413,1763423237232,-233.0,0.00027028,2]
[394294414,1763423237251,-300.0,0.00027029,2]
[394294415,1763423237270,-300.0,0.00027029,2]
[394294416,1763423237290,-300.0,0.0002903,2]
[394294417,1763423237310,-235.27876376,0.00031395,2]
[394294418,1763423237329,-198.84550175,0.0003275,2]
[394294419,1763423237349,-249.656998,0.00033165,2]
[394294420,1763423237368,-178.3178409,0.000332,117]
[394294421,1763423237389,-544.0,0.00034,120]
[394294422,1763423237408,-500.0,0.000346,5]
[394294423,1763423237427,-548.61399577,0.000346,5]
[394294424,1763423237446,-500.0,0.000346,5]
[394294425,1763423237464,-500.0,0.00034617,5]
[394294426,1763423237483,-500.0,0.00034617,5]
[394294427,1763423237503,-178.0,0.00035,120]
[394294428,1763423237522,-1000.0,0.00035148,5]
[394294429,1763423237542,-430.63537826,0.00035165,5]
[394294430,1763423237561,-1000.0,0.00035165,5]
[394294431,1763423237580,-500.0,0.00035696,5]
[394294432,1763423237600,-1180.30371574,0.00035713,5]
[394294433,1763423238115,-209.40501382,0.00035713,5]
[394294434,1763423238137,-3501.55723964,0.00036855,2]
[394294435,1763423238160,-500.0,0.00036954,15]
[394294436,1763423238184,-500.0,0.00036954,15]
[394294437,1763423238204,-500.0,0.00036954,15]
[394294438,1763423238230,-147.52869994,0.00036954,7]
[394294440,1763423243229,-352.47130006,0.00036954,7]
[394294441,1763423243257,-146.95260572,0.00036954,15]
[394294442,1763423251124,-353.04739428,0.00036954,15]
[394294443,1763423251152,-255.322215,0.00036954,15]
[394294585,1763423354091,-240.895,0.00036957,47]
[394294586,1763423354111,-2767.8213463,0.00036958,2]
[394294587,1763423361169,-5587.5290659,0.00036958,2]
[394294633,1763423432590,-447.68027653,0.00038178,120]
[394294636,1763423432601,-292.67759807,0.00038178,120]
[394294716,1763423438588,-7201.0,0.00038,2]
[394294717,1763423438598,-259.6421254,0.00038178,120]
[394294718,1763423438607,-1000.0,0.00038178,120]
[394294719,1763423438616,-158.7977036,0.00038178,120]
[394294720,1763423438626,-311.74667783,0.00038179,20]
[394294721,1763423438635,-2000.0,0.00038179,20]
[394294722,1763423438644,-249.656998,0.00039654,2]
[394294723,1763423438653,-235.51404252,0.0003979,2]
[394294724,1763423438662,-400.0,0.0004,120]
[394294725,1763423438671,-500.0,0.00042,120]
[394294726,1763423438681,-276.31,0.00042102,2]
[394294727,1763423438690,-267.809265,0.00042202,2]
[394294728,1763423438699,-500.0,0.00043486,31]
[394294729,1763423438709,-500.0,0.00043486,31]
[394294730,1763423438718,-500.0,0.00043486,31]
[394294731,1763423438727,-500.0,0.00043486,7]
[394294732,1763423438736,-500.0,0.00043486,15]
[394294733,1763423438745,-500.0,0.00043486,31]
[394294734,1763423438755,-500.0,0.00043486,31]
[394294735,1763423438764,-500.0,0.00043486,7]
[394294736,1763423438773,-500.0,0.00043486,15]
[394294737,1763423438782,-500.0,0.00043486,31]
[394294738,1763423438792,-500.0,0.00043486,31]
[394294739,1763423438801,-500.0,0.00043486,31]
[394294740,1763423438811,-500.0,0.00043486,31]
[394294741,1763423438820,-519.01509662,0.00043486,31]
[394294742,1763423438829,-500.0,0.00043486,31]
[394294743,1763423438839,-500.0,0.00043486,7]
[394294744,1763423438848,-500.0,0.00043486,7]
[394294745,1763423438857,-154.4878891,0.00043486,31]
[394294746,1763423438866,-500.0,0.00043486,7]
[394294747,1763423438875,-500.0,0.00043486,7]
[394294748,1763423438885,-500.0,0.00043486,7]
[394294749,1763423438894,-449.48138411,0.00043486,7]
[394294750,1763423438903,-2634.74644151,0.00043487,2]
[394294751,1763423438913,-500.0,0.00044,120]
[394294752,1763423438922,-199.0,0.00044109,30]
[394294753,1763423438932,-238.0,0.00045,21]
[394294754,1763423438945,-1000.0,0.00045,120]
[394294755,1763423438956,-199.0,0.00045479,30]
[394294756,1763423438965,-269.89857897,0.00045545,2]
[394294757,1763423438975,-387.42077748,0.00045598,2]
[394294758,1763423438986,-285.20847033,0.00045688,10]
[394294759,1763423438995,-150.0,0.000458,120]
[394294760,1763423439004,-1000.0,0.00046,120]
[394294761,1763423439013,-249.656998,0.00046143,2]
[394294762,1763423439024,-199.0,0.00046849,30]
[394294763,1763423439033,-150.0,0.00046915,2]
[394294764,1763423439042,-500.0,0.0004698,30]
[394294765,1763423439052,-1000.0,0.00047,120]
[394294766,1763423439061,-177.0,0.000478,120]
[394294767,1763423439070,-800.0,0.00048,120]
[394294768,1763423439079,-1000.0,0.00048,120]
[394294769,1763423439089,-199.0,0.00048219,30]
[394294770,1763423439098,-5412.94095532,0.000487,49]
[394294865,1763423444505,-401.74904468,0.000487,49]
[394294866,1763423444514,-3063.86258472,0.00048873,28]
[394294867,1763423444523,-410.03373042,0.000489,2]
[394294868,1763423444532,-150.0,0.00048972,7]
[394294869,1763423444541,-500.9249435,0.00048973,10]
[394294870,1763423444551,-500.0,0.00048973,10]
[394294871,1763423444560,-500.0,0.00048973,10]
[394294872,1763423444569,-501.65172217,0.00048973,10]
[394294873,1763423444577,-500.0,0.00048973,10]
[394294874,1763423444586,-500.0,0.00048973,10]
[394294875,1763423444596,-500.92126911,0.00048973,10]
[394294876,1763423444605,-500.0,0.00048973,10]
[394294877,1763423444614,-500.0,0.00048973,10]
[394294878,1763423444623,-407.9006749,0.00048973,10]
[394294879,1763423444632,-500.0,0.00048973,10]
[394294880,1763423444641,-500.0,0.00048973,10]
[394294881,1763423444650,-159.42078263,0.00048973,10]
[394294882,1763423444659,-500.0,0.00048973,10]
[394294883,1763423444669,-500.0,0.00048973,10]
[394294884,1763423444678,-500.0,0.00048973,10]
[394294885,1763423444688,-500.0,0.00048973,10]
[394294886,1763423444697,-500.0,0.00048973,10]
[394294887,1763423444707,-577.21634025,0.00048973,10]
[394294888,1763423444716,-500.0,0.00048973,10]
[394294889,1763423444726,-500.0,0.00048973,10]
[394294890,1763423444735,-500.0,0.00048973,10]
[394294891,1763423444745,-500.0,0.00048973,120]
[394294893,1763423444754,-624.0,0.00048973,120]
[394294894,1763423444763,-198.0,0.00048973,120]
[394294895,1763423444772,-1339.33426115,0.0004898,10]
[394294897,1763423444837,-221.64268668,0.0004898,10]
[394294941,1763423446756,-1613.35305217,0.0004898,10]
[394294943,1763423446765,-2645.28,0.0004898,10]
[394294944,1763423446775,-2204.4,0.0004898,10]
[394294945,1763423446784,-2115.63,0.0004898,10]
[394294946,1763423446792,-500.0,0.00048989,7]
[394294947,1763423446801,-244.40174935,0.00048989,120]
[394294948,1763423446810,-417.53876653,0.00048989,7]
[394294949,1763423446820,-500.0,0.00048989,7]
[394294950,1763423446831,-150.0,0.00048989,4]
[394294951,1763423446843,-672.81288873,0.00048989,4]
[394294952,1763423446851,-500.0,0.00048989,4]
[394294953,1763423446860,-500.0,0.00048989,4]
[394294954,1763423446869,-500.0,0.00048989,4]
[394294955,1763423446878,-500.0,0.00048989,4]
[394294956,1763423446887,-500.0,0.00048989,4]
[394294957,1763423446895,-500.0,0.00048989,4]
[394294958,1763423446904,-243.8155,0.00048989,4]
[394294959,1763423446913,-152.41331518,0.0004899,4]
[394294960,1763423446922,-18642.71472805,0.0004899,4]
[394294963,1763423447083,-345.42383814,0.0004899,4]
[394294964,1763423447350,-1407.28159043,0.0004899,4]
[394294965,1763423483760,289.93229305,0.00036854,30]
[394294974,1763423793871,851.868973,0.00032876,120]
[394294982,1763424335340,-150.98056718,0.00031802,10]
[394294983,1763424335362,-163.52818044,0.00036955,30]
[394294986,1763424431096,-14.15579251,0.00036955,30]
[394294987,1763424431116,-196.71786322,0.00038183,20]
[394294988,1763424431137,-27.00938209,0.00038236,30]
[394294989,1763424435079,-972.99061791,0.00038236,30]
[394294990,1763424435099,-264.35896738,0.0004,30]
[394294991,1763424435122,-150.0,0.0004046,2]
[394294992,1763424435143,-300.0,0.00040997,5]
[394294993,1763424435164,-1200.0,0.00040998,5]
[394294994,1763424435184,-300.0,0.00040998,5]
[394294995,1763424435204,-5163.01735334,0.00040999,2]
[394294996,1763424452144,-235.49692293,0.00040899,2]
[394295016,1763424631829,-150.0,0.00040441,2]
[394295018,1763424631838,-5.16502005,0.00040899,2]
[394295020,1763424631847,-211.45177383,0.00040998,5]
[394295440,1763424637736,-26.16632477,0.00040998,5]
[394295442,1763424637747,-75.3819014,0.00040998,5]
[394295445,1763424637758,-161.02499572,0.00041,120]
[394295446,1763424637767,-229.63336977,0.00041,120]
[394295448,1763424637776,-248.73446004,0.00041,120]
[394295450,1763424637785,-161.02499572,0.000422,120]
[394295452,1763424637795,-175.63539663,0.000434,120]
[394295454,1763424637803,-329.0,0.00043499,5]
[394295456,1763424637813,-300.0,0.00043499,5]
[394295458,1763424637822,-161.02499572,0.000435,120]
[394295460,1763424637831,-6007.69598706,0.000435,2]
[394295463,1763424637842,-3291.06443375,0.000435,2]
[394295465,1763424637854,-40701.23957919,0.000435,2]
[394295467,1763424637864,-199.0,0.00044109,30]
[394295469,1763424637872,-178.39,0.00044118,2]
[394295471,1763424637882,-155.804943,0.00044413,2]
[394295473,1763424637891,-356.29,0.00044664,7]
[394295474,1763424637900,-469.0,0.00044764,7]
[394295476,1763424637909,-469.0,0.00044981,2]
[394295478,1763424637917,-192.716,0.00044981,72]
[394295480,1763424637926,-469.0,0.00045274,2]
[394295482,1763424637935,-150.0,0.00045274,120]
[394295484,1763424637944,-470.0,0.00045406,7]
[394295486,1763424637953,-469.0,0.00045429,2]
[394295487,1763424637962,-199.0,0.00045479,30]
[394295488,1763424637971,-164.91607627,0.00045533,2]
[394295489,1763424637980,-296.84893728,0.00045533,2]
[394295490,1763424637990,-203.57233118,0.00045533,2]
[394295491,1763424638000,-366.43019612,0.00045533,2]
[394295492,1763424638010,-651.43145976,0.00045533,2]
[394295493,1763424638020,-485.81744215,0.00045533,2]
[394295494,1763424638030,-527.73144406,0.00045533,2]
[394295495,1763424638040,-469.0,0.00045842,30]
[394295496,1763424638049,-472.0,0.00045845,30]
[394295497,1763424638058,-470.0,0.00046205,30]
[394295498,1763424638067,-500.0,0.00046466,70]
[394295499,1763424638076,-472.0,0.00046481,2]
[394295500,1763424638086,-469.0,0.00046553,2]
[394295501,1763424638095,-470.0,0.00046688,7]
[394295502,1763424638104,-469.0,0.00046708,120]
[394295503,1763424638113,-470.0,0.00046783,120]
[394295504,1763424638122,-500.0,0.00046848,120]
[394295505,1763424638132,-500.0,0.00046848,120]
[394295506,1763424638141,-309.22279469,0.00046848,120]
[394295507,1763424638150,-500.0,0.00046848,7]
[394295508,1763424638159,-500.0,0.00046848,120]
[394295509,1763424638168,-651.92382967,0.00046848,120]
[394295510,1763424638178,-500.0,0.00046848,120]
[394295511,1763424638187,-500.0,0.00046848,7]
[394295512,1763424638197,-566.7212456,0.00046848,120]
[394295513,1763424638206,-452.09746682,0.00046848,120]
[394295514,1763424638216,-500.0,0.00046848,7]
[394295515,1763424638226,-500.0,0.00046848,7]
[394295516,1763424638235,-500.0,0.00046848,7]
[394295517,1763424638244,-500.0,0.00046848,7]
[394295518,1763424638254,-500.0,0.00046848,7]
[394295519,1763424638263,-500.0,0.00046848,7]
[394295520,1763424638271,-500.0,0.00046848,7]
[394295521,1763424638280,-500.0,0.00046848,7]
[394295522,1763424638290,-500.0,0.00046848,7]
[394295523,1763424638301,-500.0,0.00046848,7]
[394295524,1763424638310,-500.0,0.00046848,7]
[394295525,1763424638319,-500.0,0.00046848,7]
[394295526,1763424638328,-500.0,0.00046848,7]
[394295527,1763424638337,-500.0,0.00046848,7]
[394295528,1763424638347,-500.0,0.00046848,7]
[394295529,1763424638355,-199.0,0.00046849,30]
[394295530,1763424638364,-108902.36828817,0.00047,10]
[394295531,1763424638378,-320.80769379,0.00047,10]
[394295532,1763424638388,-2047.98103264,0.00047,10]
[394295533,1763424638399,-5582.1560482,0.00047,10]
[394295534,1763424638409,-279.10748082,0.00047,10]
[394295543,1763424639859,-16360.97718379,0.00047,10]
[394295567,1763424643387,-46243.14489022,0.00047,10]
[394295569,1763424643400,-553.44802179,0.00047,10]
[394295573,1763424646380,-20004.3299,0.00047,10]
[394295576,1763424646391,-5770.99160298,0.00047,10]
[394295577,1763424663844,810.32234156,0.000253,2]
[394295578,1763424744092,250.0,0.00015,3]
[394295580,1763425124549,5754.88056318,0.0002,7]
[394295581,1763425124573,25000.0,0.0002,7]
[394295582,1763425124598,25000.0,0.0002,7]
[394295583,1763425124622,25000.0,0.0002,7]
[394295584,1763425124646,24673.571284,0.0002,7]
[394295585,1763425137680,-387.59295,0.0002,7]
[394295586,1763425319660,604.1,0.0003287,120]
[394295587,1763425342826,210.460982,0.00013699,2]
[394295590,1763425534166,-360.69332133,0.000197,2]
[394295591,1763425534187,-150.0,0.00019836,2]
[394295592,1763425534207,-27.57628263,0.00019973,2]
[394295595,1763425608096,-342.32300731,0.00019973,2]
[394295599,1763425630081,-130.10071006,0.00019973,2]
[394295600,1763425630102,-300.0,0.00019997,2]
[394295601,1763425630126,-500.0,0.00019998,2]
[394295602,1763425630151,-500.0,0.00019998,2]
[394295603,1763425630174,-500.0,0.00019998,2]
[394295604,1763425630196,-500.0,0.00019998,2]
[394295605,1763425630225,-500.0,0.00019998,2]
[394295606,1763425630249,-500.0,0.00019998,2]
[394295607,1763425630273,-500.0,0.00019998,2]
[394295608,1763425630296,-500.0,0.00019998,2]
[394295609,1763425630326,-500.0,0.00019998,2]
[394295610,1763425630352,-500.0,0.00019998,2]
[394295611,1763425630377,-613.83632668,0.00019998,2]
[394295612,1763425630403,-500.0,0.00019998,2]
[394295613,1763425630433,-500.0,0.00019998,2]
[394295614,1763425630457,-390.84824724,0.00019998,2]